[Event "Targo Mures Open 2019"]
[Site "Targo Mures"]
[Date "2019.10.17"]
[Round "1.2"]
[White "Manolache, Marius"]
[Black "Marza, Teodor-Ioan"]
[Result "1-0"]
[ECO "A45"]
[WhiteElo "2548"]
[BlackElo "1324"]
[Annotator "ChessBase"]
[PlyCount "25"]
[EventDate "2019.03.02"]
[EventType "swiss"]
[EventCountry "ROU"]
[SourceTitle "playchess.com"]
[Source "ChessBase"]
[SourceQuality "1"]
[TimeControl "5400+30"]

1. d4 {[%emt 0:00:00]} Nf6 {[%emt 0:00:00]} 2. Bg5 {[%emt 0:00:00]} Ne4 {[%emt 0:00:33]} 3. Bf4 {[%emt 0:00:00]} g6 {[%emt 0:01:01]} 4. f3 {[%emt 0:00:59]} Nf6 {[%emt 0:00:38]} 5. e4 {[%emt 0:00:35]} Bg7 {[%emt 0:01:05]} 6. Nc3 {[%emt 0:03:03]} O-O {[%emt 0:01:50]} 7. Qd2 {[%emt 0:02:41]} d6 {[%emt 0:03:28]} 8. O-O-O {[%emt 0:03:54]} c6 {[%emt 0:02:32]} 9. Bh6 {[%emt 0:02:20]} Nbd7 {[%emt 0:01:24]} 10. h4 {[%emt 0:01:46]} Nb6 {[%emt 0:00:36]} 11. h5 {[%emt 0:00:56]} Nxh5 {[%emt 0:03:48]} 12. Rxh5 {[%emt 0:00:44]} gxh5 {[%emt 0:00:10]} 13. Qg5 {[%emt 0:00:05]} 1-0

[Event "Targo Mures Open 2019"]
[Site "Targo Mures"]
[Date "2019.10.17"]
[Round "1.3"]
[White "Kumar, Ambar-David"]
[Black "Jianu, Vlad-Cristian"]
[Result "0-1"]
[ECO "B24"]
[WhiteElo "1242"]
[BlackElo "2529"]
[Annotator "ChessBase"]
[PlyCount "70"]
[EventDate "2019.03.02"]
[EventType "swiss"]
[EventCountry "ROU"]
[SourceTitle "playchess.com"]
[Source "ChessBase"]
[SourceQuality "1"]
[TimeControl "5400+30"]

1. e4 {[%emt 0:00:00]} c5 {[%emt 0:00:00]} 2. Nc3 {[%emt 0:00:54]} Nc6 {[%emt 0:00:44]} 3. Nf3 {[%emt 0:01:58]} g6 {[%emt 0:00:25]} 4. Bc4 {[%emt 0:00:48]} Bg7 {[%emt 0:00:32]} 5. d3 {[%emt 0:01:58]} d6 {[%emt 0:00:54]} 6. h3 {[%emt 0:02:53]} Nf6 {[%emt 0:00:13]} 7. a3 {[%emt 0:01:15]} O-O {[%emt 0:00:07]} 8. Be3 {[%emt 0:01:43]} e6 {[%emt 0:01:31]} 9. Bb3 {[%emt 0:04:16]} b6 {[%emt 0:00:25]} 10. Ba4 {[%emt 0:01:27]} Bb7 {[%emt 0:00:06]} 11. Rb1 {[%emt 0:02:11]} d5 {[%emt 0:01:45]} 12. Bf4 {[%emt 0:03:56]} dxe4 {[%emt 0:03:36]} 13. dxe4 {[%emt 0:02:57]} Nd4 {[%emt 0:00:22]} 14. Nxd4 {[%emt 0:04:11]} cxd4 {[%emt 0:00:17]} 15. Nb5 {[%emt 0:01:00]} Nxe4 {[%emt 0:00:14]} 16. O-O {[%emt 0:07:52]} e5 {[%emt 0:00:08]} 17. Bh2 {[%emt 0:01:45]} a6 {[%emt 0:00:05]} 18. Nxd4 {[%emt 0:06:19]} exd4 {[%emt 0:00:09]} 19. Re1 {[%emt 0:02:10]} Qg5 {[%emt 0:02:27]} 20. Qg4 Qxg4 {[%emt 0:00:16]} 21. hxg4 {[%emt 0:03:43]} Nc5 {[%emt 0:00:05]} 22. Bb3 Nxb3 {[%emt 0:00:13]} 23. cxb3 {[%emt 0:03:03]} Rfe8 {[%emt 0:00:05]} 24. Red1 {[%emt 0:00:53]} Bd5 {[%emt 0:00:20]} 25. b4 {[%emt 0:00:57]} Re2 {[%emt 0:00:28]} 26. Bc7 {[%emt 0:01:50]} Bb3 {[%emt 0:00:14]} 27. Rf1 {[%emt 0:01:17]} b5 {[%emt 0:00:17]} 28. Bb6 {[%emt 0:01:02]} d3 {[%emt 0:00:07]} 29. g3 {[%emt 0:01:54]} d2 {[%emt 0:00:10]} 30. Kg2 {[%emt 0:00:55]} Rae8 {[%emt 0:00:17]} 31. Be3 R8xe3 {[%emt 0:00:07]} 32. Kh3 {[%emt 0:00:58]} Rd3 {[%emt 0:00:23]} 33. g5 {[%emt 0:00:43]} Be5 {[%emt 0:00:12]} 34. f4 {[%emt 0:01:18]} Be6+ {[%emt 0:00:07]} 35. Kh4 {[%emt 0:01:35]} Rh2# {[%emt 0:00:03]} 0-1

[Event "Targo Mures Open 2019"]
[Site "Targo Mures"]
[Date "2019.10.17"]
[Round "1.5"]
[White "Malutan, Andrada"]
[Black "Filip, Lucian-Ioan"]
[Result "0-1"]
[ECO "B43"]
[WhiteElo "1170"]
[BlackElo "2418"]
[Annotator "RC"]
[PlyCount "40"]
[EventDate "2019.03.02"]
[EventType "swiss"]
[EventCountry "ROU"]
[SourceTitle "playchess.com"]
[Source "ChessBase"]
[SourceQuality "1"]
[TimeControl "5400+30"]

1. e4 c5 2. Nf3 e6 3. Nc3 a6 4. d4 cxd4 5. Nxd4 Qc7 6. Bd2 Nc6 7. Nb3 Nf6 8. Qf3 b5 9. O-O-O Ne5 10. Bf4 b4 11. Na4 Bb7 12. Qg3 Rc8 13. Rd2 Nxe4 14. Bxe5 d6 15. Qd3 dxe5 16. Re2 Rd8 17. Qe3 Be7 18. Kb1 Bg5 19. Qb6 Rd1+ 20. Nc1 Rxc1# 0-1

[Event "Targo Mures Open 2019"]
[Site "Targo Mures"]
[Date "2019.10.17"]
[Round "1.6"]
[White "Soltanici, Ruslan"]
[Black "Kumar, Amrit-Darius"]
[Result "1-0"]
[ECO "C62"]
[WhiteElo "2416"]
[BlackElo "1136"]
[Annotator "RC"]
[PlyCount "47"]
[EventDate "2019.03.02"]
[EventType "swiss"]
[EventCountry "ROU"]
[SourceTitle "playchess.com"]
[Source "ChessBase"]
[SourceQuality "1"]
[TimeControl "5400+30"]

1. e4 {[%emt 0:00:00]} e5 {[%emt 0:00:00]} 2. Nf3 {[%emt 0:00:00]} Nc6 {[%emt 0:00:26]} 3. Bb5 {[%emt 0:00:11]} d6 {[%emt 0:00:25]} 4. d4 {[%emt 0:03:39]} exd4 {[%emt 0:05:22]} 5. Nxd4 {[%emt 0:01:13]} Bd7 {[%emt 0:00:48]} 6. Bxc6 {[%emt 0:01:27]} Bxc6 {[%emt 0:00:35]} 7. Nc3 {[%emt 0:00:33]} h6 {[%emt 0:01:41]} 8. O-O {[%emt 0:00:21]} Bd7 {[%emt 0:01:10]} 9. Re1 {[%emt 0:02:42]} c6 {[%emt 0:01:53]} 10. Bf4 {[%emt 0:02:40]} Qf6 {[%emt 0:05:59]} 11. Nf5 {[%emt 0:08:06]} Bxf5 {[%emt 0:03:39]} 12. exf5+ {[%emt 0:00:14]} Kd7 {[%emt 0:01:09]} 13. Ne4 {[%emt 0:01:28]} Qxf5 {[%emt 0:06:55]} 14. Bxd6 {[%emt 0:02:20]} Qd5 {[%emt 0:04:30]} 15. Bxf8 {[%emt 0:01:49]} Rxf8 {[%emt 0:00:55]} 16. Qg4+ {[%emt 0:00:42]} Kc7 {[%emt 0:07:38]} 17. Rad1 {[%emt 0:00:57]} f5 {[%emt 0:13:07]} 18. Qf4+ {[%emt 0:00:44]} Kb6 {[%emt 0:01:44]} 19. Rxd5 {[%emt 0:00:10]} cxd5 {[%emt 0:00:35]} 20. Qd6+ {[%emt 0:00:14]} Ka5 {[%emt 0:01:14]} 21. Qc5+ {[%emt 0:00:42]} b5 {[%emt 0:00:30]} 22. Qxa7+ {[%emt 0:00:33]} Kb4 {[%emt 0:00:14]} 23. a3+ {[%emt 0:00:15]} Kc4 {[%emt 0:00:16]} 24. b3# {[%emt 0:00:07]} 1-0

[Event "Targo Mures Open 2019"]
[Site "Targo Mures"]
[Date "2019.10.17"]
[Round "1.10"]
[White "Manea, Alexandru"]
[Black "Elekes, Luca-Alexandru"]
[Result "1-0"]
[ECO "D00"]
[WhiteElo "2305"]
[BlackElo "1038"]
[Annotator "RC"]
[PlyCount "117"]
[EventDate "2019.03.02"]
[EventType "swiss"]
[EventCountry "ROU"]
[SourceTitle "playchess.com"]
[Source "ChessBase"]
[SourceQuality "1"]
[TimeControl "5400+30"]

1. d4 {[%emt 0:00:00]} d5 {[%emt 0:00:00]} 2. Bg5 {[%emt 0:00:00]} Nc6 {[%emt 0:00:00]} 3. Nf3 {[%emt 0:00:00]} Bf5 {[%emt 0:00:01]} 4. e3 {[%emt 0:00:06]} Nb4 {[%emt 0:00:36]} 5. Na3 {[%emt 0:00:09]} f6 {[%emt 0:00:34]} 6. Bf4 {[%emt 0:00:15]} g5 {[%emt 0:00:30]} 7. Bg3 {[%emt 0:00:42]} Qd7 {[%emt 0:00:41]} 8. Bb5 {[%emt 0:02:15]} c6 {[%emt 0:00:30]} 9. Be2 {[%emt 0:00:05]} O-O-O {[%emt 0:00:26]} 10. c3 {[%emt 0:01:04]} Na6 {[%emt 0:00:30]} 11. Qa4 {[%emt 0:00:11]} e6 {[%emt 0:01:41]} 12. Nd2 {[%emt 0:04:38]} Bd6 {[%emt 0:01:51]} 13. Bxa6 {[%emt 0:01:48]} Bxg3 {[%emt 0:00:20]} 14. hxg3 {[%emt 0:00:10]} bxa6 {[%emt 0:00:20]} 15. Qxa6+ {[%emt 0:00:03]} Qb7 {[%emt 0:00:11]} 16. Qxb7+ {[%emt 0:00:05]} Kxb7 {[%emt 0:00:07]} 17. Nb3 {[%emt 0:00:03]} Be4 {[%emt 0:00:31]} 18. Nc5+ {[%emt 0:00:07]} Kb6 {[%emt 0:00:26]} 19. f3 {[%emt 0:00:54]} Bf5 {[%emt 0:00:19]} 20. Kd2 {[%emt 0:00:07]} Rd6 {[%emt 0:00:21]} 21. Nc2 {[%emt 0:00:18]} Ne7 {[%emt 0:00:27]} 22. Rh6 {[%emt 0:00:22]} Bg6 {[%emt 0:00:34]} 23. Rah1 {[%emt 0:00:08]} Rg8 {[%emt 0:02:04]} 24. g4 {[%emt 0:01:47]} f5 {[%emt 0:00:48]} 25. Ne1 {[%emt 0:00:44]} fxg4 {[%emt 0:00:48]} 26. fxg4 {[%emt 0:00:09]} Rg7 {[%emt 0:00:54]} 27. Nf3 {[%emt 0:02:17]} Ng8 {[%emt 0:00:25]} 28. R6h3 {[%emt 0:00:07]} h6 {[%emt 0:00:22]} 29. Ne5 {[%emt 0:00:05]} Be4 {[%emt 0:01:46]} 30. Nxe4 {[%emt 0:01:06]} dxe4 {[%emt 0:01:11]} 31. Nc4+ {[%emt 0:01:30]} Kc7 {[%emt 0:00:23]} 32. Nxd6 {[%emt 0:00:05]} Kxd6 {[%emt 0:00:10]} 33. Rf1 {[%emt 0:01:03]} Rg6 {[%emt 0:00:45]} 34. Rf7 {[%emt 0:00:09]} Nf6 {[%emt 0:00:29]} 35. Rg3 {[%emt 0:00:39]} h5 {[%emt 0:00:11]} 36. gxh5 {[%emt 0:00:09]} Nxh5 {[%emt 0:00:09]} 37. Rh3 {[%emt 0:00:10]} Rf6 {[%emt 0:00:31]} 38. Rxf6 {[%emt 0:00:08]} Nxf6 {[%emt 0:00:05]} 39. Rh6 {[%emt 0:00:07]} Ng8 {[%emt 0:00:42]} 40. Rg6 {[%emt 0:00:06]} Ne7 {[%emt 0:00:17]} 41. Rxg5 {[%emt 0:00:07]} Nd5 42. Rg7 a6 {[%emt 0:01:12]} 43. g4 {[%emt 0:00:53]} e5 {[%emt 0:00:36]} 44. Rg6+ {[%emt 0:00:06]} Kd7 {[%emt 0:00:22]} 45. dxe5 {[%emt 0:00:09]} Ne7 {[%emt 0:00:17]} 46. Rd6+ {[%emt 0:00:06]} Kc7 {[%emt 0:00:15]} 47. g5 {[%emt 0:00:07]} Nf5 {[%emt 0:00:45]} 48. g6 {[%emt 0:00:10]} Ng7 {[%emt 0:00:24]} 49. b4 {[%emt 0:00:07]} Nh5 {[%emt 0:01:04]} 50. c4 {[%emt 0:00:08]} Ng7 {[%emt 0:00:19]} 51. c5 {[%emt 0:00:05]} Nh5 {[%emt 0:01:39]} 52. e6 {[%emt 0:00:12]} Nf6 {[%emt 0:00:21]} 53. e7 {[%emt 0:00:07]} Kc8 {[%emt 0:00:56]} 54. Rxc6+ {[%emt 0:01:20]} Kd7 {[%emt 0:00:15]} 55. Rxf6 {[%emt 0:00:05]} Kxe7 {[%emt 0:00:30]} 56. Rf7+ {[%emt 0:00:03]} Ke8 {[%emt 0:00:29]} 57. c6 {[%emt 0:00:05]} Kd8 {[%emt 0:00:36]} 58. g7 {[%emt 0:00:04]} Ke8 {[%emt 0:00:18]} 59. g8=Q# 1-0

[Event "Targo Mures Open 2019"]
[Site "Targo Mures"]
[Date "2019.10.18"]
[Round "2.12"]
[White "Iuga, Ioan-Alexandru"]
[Black "Daianu, Cristian-Clement"]
[Result "0-1"]
[ECO "B94"]
[WhiteElo "1574"]
[BlackElo "2206"]
[Annotator "RC"]
[PlyCount "74"]
[EventDate "2019.03.02"]
[EventType "swiss"]
[EventCountry "ROU"]
[SourceTitle "playchess.com"]
[Source "ChessBase"]
[SourceQuality "1"]
[TimeControl "5400+30"]

1. e4 {[%emt 0:00:00]} c5 {[%emt 0:02:35]} 2. Nf3 {[%emt 0:00:00]} d6 {[%emt 0:00:15]} 3. d4 {[%emt 0:00:00]} cxd4 {[%emt 0:00:06]} 4. Nxd4 {[%emt 0:00:00]} Nf6 {[%emt 0:00:04]} 5. Nc3 {[%emt 0:00:03]} a6 {[%emt 0:00:06]} 6. Bg5 {[%emt 0:00:05]} Nbd7 {[%emt 0:00:40]} 7. f4 {[%emt 0:01:17]} Qc7 {[%emt 0:00:27]} 8. Qf3 {[%emt 0:01:01]} e5 {[%emt 0:00:17]} 9. Nb3 {[%emt 0:03:34]} h6 {[%emt 0:04:31]} 10. Bxf6 {[%emt 0:03:15]} Nxf6 {[%emt 0:00:03]} 11. fxe5 {[%emt 0:00:10]} dxe5 {[%emt 0:00:10]} 12. h3 {[%emt 0:00:43]} Bb4 {[%emt 0:03:09]} 13. O-O-O {[%emt 0:03:17]} Bxc3 {[%emt 0:02:58]} 14. bxc3 {[%emt 0:01:15]} Be6 {[%emt 0:00:07]} 15. Kb2 {[%emt 0:06:57]} Rc8 {[%emt 0:00:31]} 16. Be2 {[%emt 0:03:14]} Qc6 {[%emt 0:02:33]} 17. Rhe1 {[%emt 0:07:15]} O-O {[%emt 0:01:40]} 18. Qe3 {[%emt 0:10:53]} Nxe4 {[%emt 0:01:59]} 19. Bf3 {[%emt 0:02:38]} Qxc3+ {[%emt 0:00:18]} 20. Qxc3 {[%emt 0:00:30]} Nxc3 {[%emt 0:00:05]} 21. Rd3 {[%emt 0:01:34]} Na4+ {[%emt 0:04:46]} 22. Kb1 {[%emt 0:01:38]} Bf5 {[%emt 0:00:08]} 23. Rd2 {[%emt 0:01:05]} Rfe8 {[%emt 0:02:26]} 24. Bxb7 {[%emt 0:00:33]} Rc7 {[%emt 0:08:00]} 25. Bf3 {[%emt 0:30:28]} f6 {[%emt 0:04:38]} 26. Bd5+ {[%emt 0:01:58]} Kf8 {[%emt 0:00:15]} 27. g4 {[%emt 0:00:59]} Nc3+ {[%emt 0:03:49]} 28. Kb2 {[%emt 0:01:43]} Bxc2 {[%emt 0:00:27]} 29. Rxc2 {[%emt 0:00:55]} Nxd5 {[%emt 0:00:49]} 30. Rxc7 {[%emt 0:00:24]} Nxc7 {[%emt 0:00:04]} 31. Rc1 {[%emt 0:00:16]} Re7 {[%emt 0:00:26]} 32. Rc6 {[%emt 0:00:23]} e4 {[%emt 0:00:20]} 33. Nd4 {[%emt 0:00:29]} e3 {[%emt 0:01:21]} 34. Rxc7 {[%emt 0:02:28]} Rxc7 {[%emt 0:01:17]} 35. Ne6+ {[%emt 0:00:18]} Kf7 {[%emt 0:00:13]} 36. Nxc7 {[%emt 0:00:17]} e2 {[%emt 0:00:04]} 37. Nxa6 {[%emt 0:00:20]} e1=Q {[%emt 0:00:06]} 0-1

[Event "Targo Mures Open 2019"]
[Site "Targo Mures"]
[Date "2019.10.18"]
[Round "3.1"]
[White "Manea, Alexandru"]
[Black "Istratescu, Andrei"]
[Result "0-1"]
[ECO "B08"]
[WhiteElo "2305"]
[BlackElo "2564"]
[Annotator "ChessBase"]
[PlyCount "117"]
[EventDate "2019.03.02"]
[EventType "swiss"]
[EventCountry "ROU"]
[SourceTitle "playchess.com"]
[Source "ChessBase"]
[SourceQuality "1"]
[TimeControl "5400+30"]

1. d4 {[%emt 0:02:30]} d6 {[%emt 0:01:54]} 2. Nf3 {[%emt 0:01:47]} g6 {[%emt 0:01:10]} 3. e4 {[%emt 0:01:25]} Nf6 {[%emt 0:01:22]} 4. Nc3 {[%emt 0:00:10]} Bg7 {[%emt 0:00:04]} 5. Be3 {[%emt 0:00:05]} a6 {[%emt 0:01:29]} 6. h3 {[%emt 0:04:38]} O-O {[%emt 0:01:05]} 7. Bd3 {[%emt 0:12:10]} c6 {[%emt 0:09:23]} 8. Qd2 {[%emt 0:00:17]} b5 {[%emt 0:00:44]} 9. Bh6 {[%emt 0:00:09]} Qc7 {[%emt 0:08:07]} 10. Qg5 {[%emt 0:07:28]} b4 {[%emt 0:01:26]} 11. Ne2 {[%emt 0:00:12]} c5 {[%emt 0:04:46]} 12. dxc5 {[%emt 0:09:56]} Qxc5 {[%emt 0:00:50]} 13. Qxc5 {[%emt 0:00:07]} dxc5 {[%emt 0:00:02]} 14. Bxg7 {[%emt 0:00:07]} Kxg7 {[%emt 0:00:02]} 15. e5 {[%emt 0:02:21]} Nd5 {[%emt 0:01:02]} 16. Be4 {[%emt 0:00:09]} Bb7 {[%emt 0:00:03]} 17. O-O-O {[%emt 0:06:39]} e6 {[%emt 0:02:16]} 18. Nd2 {[%emt 0:19:09]} Nd7 {[%emt 0:06:45]} 19. Nc4 {[%emt 0:00:29]} Rab8 {[%emt 0:00:21]} 20. Rd2 {[%emt 0:01:46]} N5b6 {[%emt 0:05:44]} 21. Bxb7 {[%emt 0:04:39]} Rxb7 {[%emt 0:00:08]} 22. Nxb6 {[%emt 0:01:28]} Nxb6 {[%emt 0:00:04]} 23. b3 {[%emt 0:01:37]} a5 {[%emt 0:02:02]} 24. c4 {[%emt 0:00:07]} bxc3 {[%emt 0:00:19]} 25. Nxc3 {[%emt 0:00:06]} c4 {[%emt 0:00:02]} 26. Rb2 {[%emt 0:06:11]} cxb3 {[%emt 0:01:18]} 27. Rxb3 {[%emt 0:00:01]} Rc7 {[%emt 0:01:42]} 28. Rxb6 {[%emt 0:00:28]} Rxc3+ {[%emt 0:00:03]} 29. Kb1 {[%emt 0:00:05]} Rfc8 {[%emt 0:03:09]} 30. Rb3 {[%emt 0:01:06]} R3c5 {[%emt 0:00:31]} 31. Re1 {[%emt 0:00:16]} a4 {[%emt 0:00:40]} 32. Rb2 {[%emt 0:07:04]} a3 {[%emt 0:04:21]} 33. Rb3 {[%emt 0:00:32]} Rc2 {[%emt 0:00:08]} 34. Rf1 {[%emt 0:02:06]} Re2 {[%emt 0:00:44]} 35. Rxa3 {[%emt 0:00:04]} Rxe5 {[%emt 0:04:59]} 36. Rb3 {[%emt 0:00:14]} h5 {[%emt 0:01:25]} 37. a3 {[%emt 0:00:24]} h4 {[%emt 0:01:06]} 38. Rc1 {[%emt 0:00:36]} Ra8 {[%emt 0:01:55]} 39. Rc4 {[%emt 0:00:59]} Rg5 {[%emt 0:01:15]} 40. Rg4 {[%emt 0:01:29]} Rxg4 {[%emt 0:01:56]} 41. hxg4 {[%emt 0:00:02]} Ra4 {[%emt 0:02:57]} 42. f3 {[%emt 0:00:13]} e5 {[%emt 0:00:25]} 43. Re3 {[%emt 0:01:45]} e4 {[%emt 0:05:10]} 44. fxe4 {[%emt 0:00:07]} Kh6 {[%emt 0:00:04]} 45. Kb2 {[%emt 0:00:46]} Kg5 {[%emt 0:00:04]} 46. Kb3 {[%emt 0:00:03]} Ra7 {[%emt 0:00:21]} 47. a4 {[%emt 0:00:16]} Kxg4 {[%emt 0:00:13]} 48. Rf3 {[%emt 0:01:22]} g5 {[%emt 0:01:29]} 49. e5 {[%emt 0:07:27]} Ra5 {[%emt 0:01:13]} 50. Rxf7 {[%emt 0:00:07]} Rxe5 {[%emt 0:02:15]} 51. Rf2 {[%emt 0:00:53]} Kg3 {[%emt 0:00:13]} 52. Ra2 {[%emt 0:00:05]} g4 {[%emt 0:00:05]} 53. Kb4 {[%emt 0:00:07]} h3 {[%emt 0:06:01]} 54. gxh3 {[%emt 0:00:02]} gxh3 {[%emt 0:00:04]} 55. a5 {[%emt 0:00:06]} h2 {[%emt 0:00:08]} 56. Rxh2 {[%emt 0:00:06]} Kxh2 {[%emt 0:00:04]} 57. a6 {[%emt 0:00:03]} Re6 {[%emt 0:00:10]} 58. Kb5 {[%emt 0:00:05]} Rxa6 {[%emt 0:00:03]} 59. Kxa6 {[%emt 0:00:01]} 0-1

[Event "Targo Mures Open 2019"]
[Site "Targo Mures"]
[Date "2019.10.18"]
[Round "3.2"]
[White "Manolache, Marius"]
[Black "Petre, Nad-Titus"]
[Result "1-0"]
[ECO "A45"]
[WhiteElo "2548"]
[BlackElo "2306"]
[Annotator "ChessBase"]
[PlyCount "87"]
[EventDate "2019.03.02"]
[EventType "swiss"]
[EventCountry "ROU"]
[SourceTitle "playchess.com"]
[Source "ChessBase"]
[SourceQuality "1"]
[TimeControl "5400+30"]

1. d4 {[%emt 0:00:00]} Nf6 {[%emt 0:00:00]} 2. Bf4 {[%emt 0:00:48]} b6 {[%emt 0:00:01]} 3. Nc3 {[%emt 0:01:23]} Bb7 {[%emt 0:01:02]} 4. e3 {[%emt 0:04:05]} e6 {[%emt 0:03:32]} 5. a3 {[%emt 0:03:04]} Be7 {[%emt 0:02:49]} 6. Nf3 {[%emt 0:01:28]} O-O {[%emt 0:07:01]} 7. Bd3 {[%emt 0:06:38]} c5 {[%emt 0:06:50]} 8. Ng5 {[%emt 0:08:21]} d6 {[%emt 0:10:53]} 9. Qe2 {[%emt 0:08:33]} Nbd7 {[%emt 0:08:19]} 10. Rd1 {[%emt 0:10:55]} a6 {[%emt 0:03:56]} 11. dxc5 {[%emt 0:04:57]} Nxc5 {[%emt 0:04:11]} 12. e4 {[%emt 0:06:45]} e5 {[%emt 0:05:46]} 13. Bc1 {[%emt 0:06:59]} h6 {[%emt 0:11:08]} 14. Nf3 {[%emt 0:00:13]} Qc8 {[%emt 0:00:33]} 15. O-O {[%emt 0:01:59]} Bc6 {[%emt 0:07:42]} 16. b4 {[%emt 0:07:17]} Nxd3 {[%emt 0:00:20]} 17. cxd3 {[%emt 0:00:20]} Bd7 {[%emt 0:00:50]} 18. Bb2 {[%emt 0:00:32]} Bg4 {[%emt 0:00:58]} 19. h3 {[%emt 0:01:46]} Bh5 {[%emt 0:03:52]} 20. Qe3 {[%emt 0:04:42]} b5 {[%emt 0:01:20]} 21. d4 {[%emt 0:02:07]} exd4 {[%emt 0:07:22]} 22. Rxd4 {[%emt 0:00:11]} Re8 {[%emt 0:00:41]} 23. Nh4 {[%emt 0:05:20]} Qe6 {[%emt 0:07:23]} 24. Nf5 {[%emt 0:06:28]} Bf8 {[%emt 0:00:54]} 25. Qf4 {[%emt 0:03:14]} Rad8 {[%emt 0:00:47]} 26. g4 {[%emt 0:01:37]} Bg6 {[%emt 0:00:13]} 27. Rfd1 {[%emt 0:00:45]} Qb3 {[%emt 0:01:23]} 28. R1d2 {[%emt 0:00:24]} Rc8 {[%emt 0:00:23]} 29. R4d3 {[%emt 0:00:50]} Qc4 {[%emt 0:00:32]} 30. Ne3 {[%emt 0:01:21]} Qe6 {[%emt 0:00:44]} 31. f3 {[%emt 0:00:24]} Nd7 {[%emt 0:00:32]} 32. Ncd5 {[%emt 0:00:58]} Ne5 {[%emt 0:00:30]} 33. Rc3 {[%emt 0:00:19]} Rxc3 {[%emt 0:00:21]} 34. Bxc3 {[%emt 0:00:18]} Rc8 {[%emt 0:00:10]} 35. Nf5 {[%emt 0:01:37]} f6 {[%emt 0:01:42]} 36. Kg2 {[%emt 0:00:37]} Bf7 {[%emt 0:01:10]} 37. Bd4 {[%emt 0:00:28]} Kh7 {[%emt 0:01:31]} 38. Re2 {[%emt 0:00:28]} Rc4 {[%emt 0:00:37]} 39. Qd2 {[%emt 0:00:20]} Rc6 {[%emt 0:00:41]} 40. f4 {[%emt 0:00:18]} Nc4 {[%emt 0:00:16]} 41. Qd3 {[%emt 0:00:08]} Bg6 {[%emt 0:00:51]} 42. Nxg7 {[%emt 0:00:41]} Qxd5 {[%emt 0:00:36]} 43. exd5 {[%emt 0:00:11]} Bxd3 {[%emt 0:00:12]} 44. dxc6 {[%emt 0:00:05]} 1-0

[Event "Targo Mures Open 2019"]
[Site "Targo Mures"]
[Date "2019.10.18"]
[Round "3.3"]
[White "Daianu, Cristian-Clement"]
[Black "Jianu, Vlad-Cristian"]
[Result "0-1"]
[ECO "B33"]
[WhiteElo "2206"]
[BlackElo "2529"]
[Annotator "ChessBase"]
[PlyCount "98"]
[EventDate "2019.03.02"]
[EventType "swiss"]
[EventCountry "ROU"]
[SourceTitle "playchess.com"]
[Source "ChessBase"]
[SourceQuality "1"]
[TimeControl "5400+30"]

1. e4 {[%emt 0:11:53]} c5 {[%emt 0:00:00]} 2. Nf3 {[%emt 0:00:11]} Nc6 {[%emt 0:00:00]} 3. d4 {[%emt 0:00:07]} cxd4 {[%emt 0:00:00]} 4. Nxd4 {[%emt 0:00:03]} Nf6 {[%emt 0:00:00]} 5. Nc3 {[%emt 0:00:03]} e5 {[%emt 0:00:00]} 6. Ndb5 {[%emt 0:01:08]} d6 {[%emt 0:00:00]} 7. Bg5 {[%emt 0:00:14]} a6 {[%emt 0:00:07]} 8. Na3 {[%emt 0:00:05]} b5 {[%emt 0:00:04]} 9. Bxf6 {[%emt 0:00:28]} gxf6 {[%emt 0:00:07]} 10. Nd5 {[%emt 0:00:04]} f5 {[%emt 0:00:08]} 11. c3 {[%emt 0:03:04]} Bg7 {[%emt 0:01:29]} 12. exf5 {[%emt 0:02:11]} Bxf5 {[%emt 0:00:25]} 13. Nc2 {[%emt 0:00:10]} O-O {[%emt 0:00:25]} 14. Nce3 {[%emt 0:00:29]} Be6 {[%emt 0:00:07]} 15. g3 {[%emt 0:00:12]} f5 {[%emt 0:06:56]} 16. Qh5 {[%emt 0:01:25]} Ra7 {[%emt 0:01:19]} 17. Bg2 {[%emt 0:04:12]} Kh8 {[%emt 0:12:49]} 18. O-O {[%emt 0:10:23]} Raf7 {[%emt 0:00:56]} 19. Rad1 {[%emt 0:04:15]} Ne7 {[%emt 0:08:01]} 20. Rd2 {[%emt 0:18:27]} Ng6 {[%emt 0:06:38]} 21. Rfd1 {[%emt 0:02:09]} e4 {[%emt 0:09:08]} 22. Nb4 {[%emt 0:10:33]} Be5 {[%emt 0:02:37]} 23. Nc6 {[%emt 0:09:13]} Qc8 {[%emt 0:01:08]} 24. Nxe5 {[%emt 0:00:10]} dxe5 {[%emt 0:00:04]} 25. Qg5 {[%emt 0:10:39]} f4 {[%emt 0:04:10]} 26. Rd8 {[%emt 0:05:10]} Qc7 {[%emt 0:02:05]} 27. Rxf8+ {[%emt 0:02:50]} Rxf8 {[%emt 0:00:09]} 28. Ng4 {[%emt 0:02:07]} e3 {[%emt 0:09:20]} 29. fxe3 {[%emt 0:01:14]} Qb6 {[%emt 0:07:36]} 30. gxf4 {[%emt 0:01:12]} Bxg4 {[%emt 0:00:16]} 31. Qxg4 {[%emt 0:00:04]} Qxe3+ {[%emt 0:01:34]} 32. Kh1 {[%emt 0:00:03]} exf4 {[%emt 0:04:56]} 33. Qf3 {[%emt 0:00:11]} Re8 {[%emt 0:07:37]} 34. Qc6 {[%emt 0:01:15]} Kg7 {[%emt 0:01:34]} 35. h3 {[%emt 0:00:19]} Re6 {[%emt 0:01:16]} 36. Qd5 {[%emt 0:01:01]} Kh6 {[%emt 0:02:15]} 37. Bf3 {[%emt 0:00:39]} Re5 {[%emt 0:00:45]} 38. Qc6 {[%emt 0:00:09]} Qf2 {[%emt 0:01:54]} 39. Bg2 {[%emt 0:00:55]} Qxb2 {[%emt 0:03:06]} 40. Rf1 {[%emt 0:00:24]} Re2 {[%emt 0:02:04]} 41. h4 {[%emt 0:00:24]} Rf2 {[%emt 0:01:12]} 42. h5 {[%emt 0:00:36]} Rxf1+ {[%emt 0:00:19]} 43. Bxf1 {[%emt 0:00:01]} Qf2 {[%emt 0:00:38]} 44. Bg2 {[%emt 0:00:51]} Kxh5 {[%emt 0:00:31]} 45. Qxa6 {[%emt 0:00:17]} Qe1+ {[%emt 0:01:29]} 46. Kh2 {[%emt 0:00:05]} Qg3+ {[%emt 0:00:03]} 47. Kh1 {[%emt 0:00:09]} f3 {[%emt 0:00:38]} 48. Qxb5+ {[%emt 0:00:05]} Kh6 {[%emt 0:00:08]} 49. Bf1 {[%emt 0:00:10]} f2 {[%emt 0:00:32]} 0-1